[Event "Reykjavik Open 2022"]
[Site "Reykjavik"]
[Date "2022.04.07"]
[Round "2.50"]
[White "Mitra, Akash"]
[Black "Louis, Thibault"]
[Result "1/2-1/2"]
[ECO "D02"]
[WhiteElo "1866"]
[BlackElo "2181"]
[Annotator "RC"]
[PlyCount "68"]
[EventDate "2022.04.06"]
[EventCountry "ISL"]
[SourceTitle "playchess.com"]
[Source "ChessBase"]
[SourceQuality "1"]
[TimeControl "40/5400+30:1800+30"]

1. d4 {[%emt 0:00:25]} d5 {[%emt 0:01:44]} 2. Bf4 {[%emt 0:00:18]} Nf6 {[%emt 0:05:47]} 3. e3 {[%emt 0:00:13]} e6 {[%emt 0:01:58]} 4. Nf3 {[%emt 0:00:37]} Be7 {[%emt 0:01:50]} 5. Bd3 {[%emt 0:00:38]} c5 {[%emt 0:02:33]} 6. c3 {[%emt 0:00:05]} Nc6 {[%emt 0:00:52]} 7. Nbd2 {[%emt 0:00:25]} Nh5 {[%emt 0:01:15]} 8. Bg3 {[%emt 0:00:34]} f5 {[%emt 0:11:17]} 9. Ne5 {[%emt 0:04:02]} Nf6 {[%emt 0:04:52]} 10. O-O {[%emt 0:02:58]} O-O {[%emt 0:00:38]} 11. Qe2 {[%emt 0:06:56]} Ne4 {[%emt 0:13:03]} 12. Nxe4 {[%emt 0:02:56]} fxe4 {[%emt 0:01:26]} 13. Bc2 {[%emt 0:00:51]} Bd6 {[%emt 0:05:48]} 14. Nxc6 {[%emt 0:05:16]} bxc6 {[%emt 0:00:07]} 15. Bxd6 {[%emt 0:00:24]} Qxd6 {[%emt 0:00:05]} 16. f3 {[%emt 0:00:07]} exf3 {[%emt 0:09:04]} 17. Rxf3 {[%emt 0:00:39]} Bd7 {[%emt 0:01:00]} 18. Raf1 {[%emt 0:11:50]} g6 {[%emt 0:02:35]} 19. Qf2 {[%emt 0:02:24]} cxd4 {[%emt 0:07:54]} 20. exd4 {[%emt 0:00:22]} Rxf3 {[%emt 0:00:24]} 21. Qxf3 {[%emt 0:00:18]} Rf8 {[%emt 0:00:11]} 22. Qxf8+ {[%emt 0:00:09]} Qxf8 {[%emt 0:00:05]} 23. Rxf8+ {[%emt 0:00:05]} Kxf8 {[%emt 0:00:03]} 24. Kf2 {[%emt 0:01:28]} Ke7 {[%emt 0:00:16]} 25. Ke3 {[%emt 0:01:21]} Kf6 {[%emt 0:00:06]} 26. Kf4 {[%emt 0:01:55]} h6 {[%emt 0:08:28]} 27. b4 {[%emt 0:11:25]} g5+ {[%emt 0:00:33]} 28. Ke3 {[%emt 0:01:16]} e5 {[%emt 0:00:11]} 29. a4 {[%emt 0:03:57]} h5 {[%emt 0:03:11]} 30. Bd3 {[%emt 0:09:09]} h4 {[%emt 0:03:41]} 31. Bc2 {[%emt 0:04:24]} Ke6 {[%emt 0:02:25]} 32. Bd1 {[%emt 0:05:03]} Kd6 {[%emt 0:00:17]} 33. Be2 {[%emt 0:03:59]} Bf5 {[%emt 0:00:24]} 34. dxe5+ {[%emt 0:01:22]} Kxe5 {[%emt 0:00:01]} 1/2-1/2

[Event "Reykjavik Open 2022"]
[Site "Reykjavik"]
[Date "2022.04.07"]
[Round "2.51"]
[White "Coursaget, Nicolas"]
[Black "Hughes, Anthony"]
[Result "1-0"]
[ECO "D37"]
[WhiteElo "2185"]
[BlackElo "1873"]
[Annotator "RC"]
[PlyCount "41"]
[EventDate "2022.04.06"]
[EventCountry "ISL"]
[SourceTitle "playchess.com"]
[Source "ChessBase"]
[SourceQuality "1"]
[TimeControl "40/5400+30:1800+30"]

1. d4 {[%emt 0:07:43]} d5 {[%emt 0:00:25]} 2. Nf3 {[%emt 0:00:22]} Nf6 {[%emt 0:00:18]} 3. c4 {[%emt 0:00:10]} e6 {[%emt 0:00:09]} 4. Nc3 {[%emt 0:00:10]} a6 {[%emt 0:00:19]} 5. cxd5 {[%emt 0:01:17]} exd5 {[%emt 0:00:05]} 6. Bg5 {[%emt 0:00:06]} Be7 {[%emt 0:01:47]} 7. e3 {[%emt 0:02:20]} O-O {[%emt 0:06:04]} 8. Qc2 {[%emt 0:01:28]} Be6 {[%emt 0:03:04]} 9. Bd3 {[%emt 0:04:17]} h6 {[%emt 0:00:23]} 10. Bh4 {[%emt 0:01:36]} Nbd7 {[%emt 0:01:38]} 11. O-O {[%emt 0:00:47]} Re8 {[%emt 0:01:19]} 12. Rae1 {[%emt 0:07:27]} Nh5 {[%emt 0:06:40]} 13. Bxe7 {[%emt 0:02:03]} Rxe7 {[%emt 0:01:04]} 14. Nd2 {[%emt 0:07:00]} c5 {[%emt 0:14:58]} 15. f4 {[%emt 0:04:02]} c4 {[%emt 0:19:20]} 16. Be2 {[%emt 0:10:48]} g6 {[%emt 0:06:18]} 17. Bxh5 {[%emt 0:02:28]} Bf5 {[%emt 0:00:26]} 18. Qd1 {[%emt 0:00:16]} gxh5 {[%emt 0:00:32]} 19. Qxh5 {[%emt 0:00:07]} Bd3 {[%emt 0:06:40]} 20. Rf3 {[%emt 0:00:59]} Nf6 {[%emt 0:05:54]} 21. Qxh6 {[%emt 0:00:39]} 1-0

[Event "Reykjavik Open 2022"]
[Site "Reykjavik"]
[Date "2022.04.07"]
[Round "2.52"]
[White "Finnbogadottir, Tinna Kristin"]
[Black "Domalchuk-Jonasson, Aleksandr"]
[Result "0-1"]
[ECO "D05"]
[WhiteElo "1848"]
[BlackElo "2162"]
[Annotator "ChessBase"]
[PlyCount "86"]
[EventDate "2022.04.06"]
[EventCountry "ISL"]
[SourceTitle "playchess.com"]
[Source "ChessBase"]
[SourceQuality "1"]
[TimeControl "40/5400+30:1800+30"]

1. d4 {[%emt 0:00:01]} Nf6 {[%emt 0:00:23]} 2. Nf3 {[%emt 0:00:06]} e6 {[%emt 0:00:40]} 3. e3 {[%emt 0:00:16]} c5 {[%emt 0:03:41]} 4. Bd3 {[%emt 0:02:56]} Nc6 {[%emt 0:00:36]} 5. a3 {[%emt 0:00:10]} d5 {[%emt 0:11:21]} 6. b3 {[%emt 0:00:22]} b6 {[%emt 0:08:29]} 7. Nbd2 {[%emt 0:03:41]} Bb7 {[%emt 0:02:58]} 8. Bb2 {[%emt 0:00:25]} Be7 {[%emt 0:03:56]} 9. O-O {[%emt 0:00:16]} O-O {[%emt 0:00:17]} 10. h3 {[%emt 0:08:39]} a5 {[%emt 0:02:42]} 11. Re1 {[%emt 0:02:12]} a4 {[%emt 0:02:39]} 12. c4 {[%emt 0:06:15]} axb3 {[%emt 0:10:07]} 13. Qxb3 {[%emt 0:03:03]} cxd4 {[%emt 0:11:09]} 14. Nxd4 {[%emt 0:05:13]} Na5 {[%emt 0:00:14]} 15. Qd1 {[%emt 0:04:58]} Rc8 {[%emt 0:08:38]} 16. cxd5 {[%emt 0:00:40]} Nxd5 {[%emt 0:01:41]} 17. Rc1 {[%emt 0:04:09]} g6 {[%emt 0:05:39]} 18. N2f3 {[%emt 0:16:17]} Bf6 {[%emt 0:02:20]} 19. Qe2 {[%emt 0:02:33]} Qe7 {[%emt 0:04:09]} 20. Bb1 {[%emt 0:01:16]} Bg7 {[%emt 0:07:58]} 21. Ba2 {[%emt 0:04:57]} h6 {[%emt 0:02:39]} 22. Qd2 {[%emt 0:11:39]} Rfd8 {[%emt 0:04:43]} 23. Rxc8 {[%emt 0:00:19]} Bxc8 {[%emt 0:00:16]} 24. Qe2 {[%emt 0:03:44]} Kh7 {[%emt 0:01:33]} 25. Rc1 {[%emt 0:00:08]} Bb7 {[%emt 0:00:27]} 26. h4 {[%emt 0:01:49]} e5 {[%emt 0:00:47]} 27. Nb5 {[%emt 0:02:30]} e4 {[%emt 0:00:47]} 28. Nfd4 {[%emt 0:02:22]} Qxh4 {[%emt 0:00:18]} 29. Bxd5 {[%emt 0:00:26]} Rxd5 {[%emt 0:00:39]} 30. Rc7 {[%emt 0:00:34]} Rh5 {[%emt 0:00:49]} 31. Qxh5 {[%emt 0:00:46]} Qxh5 {[%emt 0:00:11]} 32. Rxf7 {[%emt 0:00:23]} Qd1+ {[%emt 0:00:03]} 33. Kh2 {[%emt 0:00:11]} Qh5+ {[%emt 0:00:02]} 34. Kg1 {[%emt 0:00:10]} Kg8 {[%emt 0:01:39]} 35. Rd7 {[%emt 0:01:47]} Qd1+ {[%emt 0:00:49]} 36. Kh2 {[%emt 0:00:12]} Qh5+ {[%emt 0:00:23]} 37. Kg1 {[%emt 0:00:08]} Nc4 {[%emt 0:01:04]} 38. Rxb7 {[%emt 0:02:13]} Qd1+ {[%emt 0:00:10]} 39. Kh2 {[%emt 0:00:11]} Be5+ {[%emt 0:01:09]} 40. g3 {[%emt 0:00:00]} Qf1 {[%emt 0:00:00]} 41. Ne6 {[%emt 0:06:06]} Qxf2+ {[%emt 0:01:19]} 42. Kh1 {[%emt 0:00:22]} Qe1+ {[%emt 0:00:06]} 43. Kg2 {[%emt 0:00:36]} Nxe3+ {[%emt 0:00:06]} 0-1

[Event "Reykjavik Open 2022"]
[Site "Reykjavik"]
[Date "2022.04.07"]
[Round "2.53"]
[White "Karason, Askell O"]
[Black "Sarkisian, Arman"]
[Result "1/2-1/2"]
[ECO "A30"]
[WhiteElo "2186"]
[BlackElo "1806"]
[Annotator "RC"]
[PlyCount "135"]
[EventDate "2022.04.06"]
[EventCountry "ISL"]
[SourceTitle "playchess.com"]
[Source "ChessBase"]
[SourceQuality "1"]
[TimeControl "40/5400+30:1800+30"]

1. Nf3 {[%emt 0:00:03]} Nf6 {[%emt 0:00:08]} 2. c4 {[%emt 0:00:06]} e6 {[%emt 0:00:08]} 3. g3 {[%emt 0:00:15]} b6 {[%emt 0:07:41]} 4. Bg2 {[%emt 0:00:13]} Bb7 {[%emt 0:00:05]} 5. O-O {[%emt 0:00:37]} c5 {[%emt 0:00:39]} 6. Nc3 {[%emt 0:00:48]} Be7 {[%emt 0:00:11]} 7. d4 {[%emt 0:01:09]} cxd4 {[%emt 0:01:11]} 8. Qxd4 {[%emt 0:02:23]} O-O {[%emt 0:08:20]} 9. Rd1 {[%emt 0:05:59]} a6 {[%emt 0:16:15]} 10. b3 {[%emt 0:01:53]} Nc6 {[%emt 0:13:33]} 11. Qf4 {[%emt 0:02:20]} Qb8 {[%emt 0:00:52]} 12. Bb2 {[%emt 0:01:15]} Qxf4 {[%emt 0:00:45]} 13. gxf4 {[%emt 0:00:02]} Rfd8 {[%emt 0:07:20]} 14. Ne5 {[%emt 0:17:08]} Rab8 {[%emt 0:02:14]} 15. Rac1 {[%emt 0:02:15]} Nxe5 {[%emt 0:01:55]} 16. fxe5 {[%emt 0:00:21]} Ne8 {[%emt 0:04:28]} 17. Ne4 {[%emt 0:01:22]} d5 {[%emt 0:04:56]} 18. exd6 {[%emt 0:17:04]} Nxd6 {[%emt 0:01:01]} 19. Nxd6 {[%emt 0:01:49]} Bxd6 {[%emt 0:03:32]} 20. Rxd6 {[%emt 0:02:05]} Rxd6 {[%emt 0:00:36]} 21. Be5 {[%emt 0:00:06]} Rdd8 {[%emt 0:02:29]} 22. Bxb8 {[%emt 0:00:34]} Rxb8 {[%emt 0:00:10]} 23. Bxb7 {[%emt 0:03:21]} Rxb7 {[%emt 0:00:08]} 24. c5 {[%emt 0:00:04]} Kf8 {[%emt 0:07:01]} 25. cxb6 {[%emt 0:00:40]} Rxb6 {[%emt 0:00:08]} 26. Rc7 {[%emt 0:00:54]} g5 {[%emt 0:03:17]} 27. f3 {[%emt 0:00:47]} Kg7 {[%emt 0:00:22]} 28. Kf2 {[%emt 0:00:03]} Kg6 {[%emt 0:00:34]} 29. Ke3 {[%emt 0:00:59]} Rd6 {[%emt 0:00:40]} 30. b4 {[%emt 0:00:53]} f5 {[%emt 0:01:54]} 31. a4 {[%emt 0:01:59]} e5 {[%emt 0:07:06]} 32. b5 {[%emt 0:02:56]} axb5 {[%emt 0:01:05]} 33. axb5 {[%emt 0:01:57]} Rd4 {[%emt 0:00:11]} 34. b6 {[%emt 0:09:39]} f4+ {[%emt 0:00:57]} 35. Kf2 {[%emt 0:00:05]} Rb4 {[%emt 0:00:11]} 36. b7 {[%emt 0:00:04]} h5 {[%emt 0:00:22]} 37. h3 {[%emt 0:00:13]} Rb1 {[%emt 0:00:45]} 38. e4 {[%emt 0:00:30]} Rb2+ {[%emt 0:01:49]} 39. Ke1 {[%emt 0:00:10]} g4 {[%emt 0:00:14]} 40. fxg4 {[%emt 0:00:00]} hxg4 {[%emt 0:00:00]} 41. hxg4 {[%emt 0:00:26]} Kg5 {[%emt 0:00:39]} 42. Rg7+ {[%emt 0:00:12]} Kh4 {[%emt 0:03:16]} 43. g5 {[%emt 0:00:04]} Kg3 {[%emt 0:03:01]} 44. g6 {[%emt 0:00:20]} f3 {[%emt 0:08:31]} 45. Rf7 {[%emt 0:00:57]} f2+ {[%emt 0:00:30]} 46. Rxf2 {[%emt 0:00:10]} Rxb7 {[%emt 0:00:29]} 47. Rf7 {[%emt 0:00:10]} Rb8 {[%emt 0:00:10]} 48. Ke2 {[%emt 0:00:42]} Rg8 {[%emt 0:00:06]} 49. g7 {[%emt 0:03:05]} Kg4 {[%emt 0:00:13]} 50. Kd3 {[%emt 0:00:09]} Kg5 {[%emt 0:00:18]} 51. Rf5+ {[%emt 0:03:05]} Kg6 {[%emt 0:00:27]} 52. Rxe5 {[%emt 0:00:04]} Rxg7 {[%emt 0:00:22]} 53. Rf5 {[%emt 0:00:37]} Rf7 {[%emt 0:00:53]} 54. Ra5 {[%emt 0:01:02]} Rd7+ {[%emt 0:01:59]} 55. Ke3 {[%emt 0:00:05]} Kf6 {[%emt 0:01:16]} 56. Kf4 {[%emt 0:00:22]} Rb7 {[%emt 0:00:47]} 57. Ra6+ {[%emt 0:00:08]} Ke7 {[%emt 0:00:06]} 58. Kf5 {[%emt 0:00:11]} Rb1 {[%emt 0:08:17]} 59. Ra7+ {[%emt 0:01:49]} Ke8 {[%emt 0:00:27]} 60. Rg7 {[%emt 0:03:27]} Kf8 {[%emt 0:01:33]} 61. Rc7 {[%emt 0:00:09]} Ke8 {[%emt 0:00:21]} 62. e5 {[%emt 0:01:35]} Rb6 {[%emt 0:02:59]} 63. Rh7 {[%emt 0:01:21]} Kf8 {[%emt 0:00:46]} 64. Ke4 {[%emt 0:02:57]} Ke8 {[%emt 0:00:53]} 65. Kd5 {[%emt 0:00:30]} Ra6 {[%emt 0:01:05]} 66. Rb7 {[%emt 0:00:11]} Rh6 {[%emt 0:00:45]} 67. e6 {[%emt 0:00:21]} Rh1 {[%emt 0:00:26]} 68. Kd6 {[%emt 0:00:12]} 1/2-1/2

[Event "Reykjavik Open 2022"]
[Site "Reykjavik"]
[Date "2022.04.07"]
[Round "2.54"]
[White "Decosse, Jean-Fabien"]
[Black "Bohlin, Jan"]
[Result "1-0"]
[ECO "D36"]
[WhiteElo "2156"]
[BlackElo "1856"]
[Annotator "RC"]
[PlyCount "117"]
[EventDate "2022.04.06"]
[EventCountry "ISL"]
[SourceTitle "playchess.com"]
[Source "ChessBase"]
[SourceQuality "1"]
[TimeControl "40/5400+30:1800+30"]

1. d4 {[%emt 0:03:08]} Nf6 {[%emt 0:00:10]} 2. c4 {[%emt 0:00:21]} e6 {[%emt 0:00:06]} 3. Nc3 {[%emt 0:01:08]} d5 {[%emt 0:00:21]} 4. cxd5 {[%emt 0:00:10]} exd5 {[%emt 0:00:05]} 5. Bg5 {[%emt 0:00:09]} c6 {[%emt 0:00:06]} 6. e3 {[%emt 0:00:30]} h6 {[%emt 0:00:23]} 7. Bh4 {[%emt 0:00:33]} Be7 {[%emt 0:00:13]} 8. Bd3 {[%emt 0:00:30]} O-O {[%emt 0:00:31]} 9. Qc2 {[%emt 0:03:00]} Re8 {[%emt 0:00:40]} 10. Nge2 {[%emt 0:00:44]} Nbd7 {[%emt 0:00:33]} 11. O-O {[%emt 0:03:04]} a5 {[%emt 0:02:15]} 12. f3 {[%emt 0:04:16]} b5 {[%emt 0:06:54]} 13. Bf2 {[%emt 0:02:02]} Ba6 {[%emt 0:05:43]} 14. Kh1 {[%emt 0:04:15]} Nb6 {[%emt 0:15:23]} 15. Bg1 {[%emt 0:03:10]} b4 {[%emt 0:03:45]} 16. Bxa6 {[%emt 0:01:31]} Rxa6 {[%emt 0:00:14]} 17. Nb1 {[%emt 0:08:01]} Nbd7 {[%emt 0:08:47]} 18. Nd2 {[%emt 0:01:13]} c5 {[%emt 0:01:16]} 19. dxc5 {[%emt 0:00:36]} Bxc5 {[%emt 0:05:37]} 20. Nd4 {[%emt 0:00:41]} Bxd4 {[%emt 0:02:32]} 21. exd4 {[%emt 0:02:05]} Rae6 {[%emt 0:01:41]} 22. a3 {[%emt 0:10:46]} Re2 {[%emt 0:02:42]} 23. axb4 {[%emt 0:00:22]} axb4 {[%emt 0:00:12]} 24. Rf2 {[%emt 0:01:09]} Qe7 {[%emt 0:06:35]} 25. Raf1 {[%emt 0:00:55]} Nh5 {[%emt 0:06:11]} 26. g3 {[%emt 0:00:57]} Nhf6 {[%emt 0:02:45]} 27. Kg2 {[%emt 0:00:17]} Nb6 {[%emt 0:07:04]} 28. b3 {[%emt 0:00:58]} Rxf2+ {[%emt 0:04:08]} 29. Bxf2 {[%emt 0:00:50]} Rc8 {[%emt 0:02:19]} 30. Qd3 {[%emt 0:03:20]} Qd7 {[%emt 0:03:01]} 31. Qa6 {[%emt 0:02:23]} Qc6 {[%emt 0:00:35]} 32. Re1 {[%emt 0:01:22]} Ra8 {[%emt 0:00:50]} 33. Qd3 {[%emt 0:00:43]} Nc8 {[%emt 0:01:39]} 34. g4 {[%emt 0:05:17]} Qc3 {[%emt 0:01:05]} 35. Re3 {[%emt 0:00:41]} Qxd3 {[%emt 0:00:33]} 36. Rxd3 {[%emt 0:00:03]} Nd6 {[%emt 0:02:00]} 37. Nf1 {[%emt 0:01:01]} Nb5 {[%emt 0:02:29]} 38. Be1 {[%emt 0:01:41]} Ra2+ {[%emt 0:04:30]} 39. Kg1 {[%emt 0:00:11]} Nc3 {[%emt 0:01:42]} 40. Bxc3 {[%emt 0:00:00]} bxc3 {[%emt 0:00:00]} 41. Rxc3 {[%emt 0:00:15]} Rb2 {[%emt 0:00:42]} 42. Rc8+ {[%emt 0:05:07]} Kh7 {[%emt 0:00:08]} 43. Rb8 {[%emt 0:00:04]} g5 {[%emt 0:01:31]} 44. Rb6 {[%emt 0:03:43]} Kg7 {[%emt 0:00:22]} 45. Ne3 {[%emt 0:00:28]} h5 {[%emt 0:02:04]} 46. h4 {[%emt 0:10:17]} gxh4 {[%emt 0:06:07]} 47. g5 {[%emt 0:00:18]} Nh7 {[%emt 0:01:23]} 48. Nf5+ {[%emt 0:00:35]} Kg8 {[%emt 0:00:23]} 49. Rb8+ {[%emt 0:01:02]} Nf8 {[%emt 0:00:08]} 50. Nxh4 {[%emt 0:00:31]} Kg7 {[%emt 0:02:01]} 51. Nf5+ {[%emt 0:00:18]} Kg6 {[%emt 0:02:55]} 52. Ne7+ {[%emt 0:00:00]} Kg7 {[%emt 0:00:13]} 53. f4 {[%emt 0:14:13]} Ne6 {[%emt 0:03:29]} 54. Rg8+ {[%emt 0:01:03]} Kh7 {[%emt 0:00:30]} 55. f5 {[%emt 0:00:06]} Nxd4 {[%emt 0:00:53]} 56. g6+ {[%emt 0:00:08]} fxg6 {[%emt 0:00:26]} 57. fxg6+ {[%emt 0:00:06]} Kh6 {[%emt 0:00:21]} 58. Rh8+ {[%emt 0:00:17]} Kg5 {[%emt 0:07:32]} 59. g7 {[%emt 0:00:39]} 1-0

[Event "Reykjavik Open 2022"]
[Site "Reykjavik"]
[Date "2022.04.07"]
[Round "2.55"]
[White "Anand, Vignesh"]
[Black "Kull, Florian"]
[Result "0-1"]
[ECO "A19"]
[WhiteElo "1882"]
[BlackElo "2138"]
[Annotator "RC"]
[PlyCount "49"]
[EventDate "2022.04.06"]
[EventCountry "ISL"]
[SourceTitle "playchess.com"]
[Source "ChessBase"]
[SourceQuality "1"]
[TimeControl "40/5400+30:1800+30"]

1. c4 {[%emt 0:00:07]} Nf6 {[%emt 0:00:36]} 2. Nc3 {[%emt 0:00:11]} e6 {[%emt 0:00:51]} 3. e4 {[%emt 0:00:38]} c5 {[%emt 0:01:42]} 4. g3 {[%emt 0:04:05]} d5 {[%emt 0:04:59]} 5. cxd5 {[%emt 0:02:56]} exd5 {[%emt 0:00:18]} 6. e5 {[%emt 0:01:33]} Nfd7 {[%emt 0:10:02]} 7. d4 {[%emt 0:08:09]} Nc6 {[%emt 0:07:04]} 8. dxc5 {[%emt 0:28:46]} d4 {[%emt 0:03:05]} 9. Ne4 {[%emt 0:14:46]} Ndxe5 {[%emt 0:03:03]} 10. f4 {[%emt 0:05:51]} Bg4 {[%emt 0:07:14]} 11. Be2 {[%emt 0:02:27]} Qd5 {[%emt 0:01:52]} 12. Bxg4 {[%emt 0:17:41]} Qxe4+ {[%emt 0:01:49]} 13. Qe2 {[%emt 0:00:02]} Qxh1 {[%emt 0:03:03]} 14. Kf1 {[%emt 0:00:02]} Bxc5 {[%emt 0:04:34]} 15. fxe5 {[%emt 0:01:48]} d3 {[%emt 0:03:12]} 16. Qg2 {[%emt 0:00:12]} Qxg1+ {[%emt 0:00:23]} 17. Qxg1 {[%emt 0:00:01]} Bxg1 {[%emt 0:00:18]} 18. Kxg1 {[%emt 0:00:01]} Nxe5 {[%emt 0:00:18]} 19. Bd1 {[%emt 0:01:05]} O-O {[%emt 0:01:50]} 20. Bf4 {[%emt 0:00:09]} Rfe8 {[%emt 0:01:23]} 21. Ba4 {[%emt 0:00:06]} Nc6 {[%emt 0:00:30]} 22. Rd1 {[%emt 0:00:10]} Rad8 {[%emt 0:00:25]} 23. Bb5 {[%emt 0:00:05]} a6 {[%emt 0:01:53]} 24. Bxd3 {[%emt 0:02:00]} Nb4 {[%emt 0:00:18]} 25. Kf1 {[%emt 0:00:10]} 0-1

[Event "Reykjavik Open 2022"]
[Site "Reykjavik"]
[Date "2022.04.07"]
[Round "2.56"]
[White "Sigeman, Johan"]
[Black "Jonsson, Olafur Gisli"]
[Result "1-0"]
[ECO "E09"]
[WhiteElo "2136"]
[BlackElo "1821"]
[Annotator "ChessBase"]
[PlyCount "101"]
[EventDate "2022.04.06"]
[EventCountry "ISL"]
[SourceTitle "playchess.com"]
[Source "ChessBase"]
[SourceQuality "1"]
[TimeControl "40/5400+30:1800+30"]

1. d4 {[%emt 0:00:02]} Nf6 {[%emt 0:00:14]} 2. c4 {[%emt 0:00:07]} e6 {[%emt 0:00:09]} 3. g3 {[%emt 0:00:20]} d5 {[%emt 0:00:40]} 4. Bg2 {[%emt 0:00:14]} Be7 {[%emt 0:00:24]} 5. Nf3 {[%emt 0:00:20]} O-O {[%emt 0:00:29]} 6. O-O {[%emt 0:00:14]} Nbd7 {[%emt 0:05:46]} 7. Nc3 {[%emt 0:07:36]} c6 {[%emt 0:02:16]} 8. b3 {[%emt 0:01:19]} b6 {[%emt 0:01:25]} 9. Bb2 {[%emt 0:02:32]} Bb7 {[%emt 0:00:23]} 10. Qc2 {[%emt 0:01:09]} Rc8 {[%emt 0:00:53]} 11. e4 {[%emt 0:05:39]} dxe4 {[%emt 0:04:28]} 12. Ng5 {[%emt 0:05:37]} c5 {[%emt 0:09:38]} 13. Ncxe4 {[%emt 0:04:19]} Nxe4 {[%emt 0:01:55]} 14. Nxe4 {[%emt 0:00:34]} Bxe4 {[%emt 0:14:28]} 15. Bxe4 {[%emt 0:03:46]} Nf6 {[%emt 0:00:42]} 16. dxc5 {[%emt 0:02:19]} Nxe4 {[%emt 0:03:32]} 17. Qxe4 {[%emt 0:00:03]} Rxc5 {[%emt 0:04:12]} 18. Rfd1 {[%emt 0:03:42]} Qc7 {[%emt 0:05:06]} 19. Rd3 {[%emt 0:06:00]} Rd8 {[%emt 0:04:18]} 20. Rad1 {[%emt 0:01:54]} Rxd3 {[%emt 0:01:04]} 21. Rxd3 {[%emt 0:04:59]} h6 {[%emt 0:02:28]} 22. h4 {[%emt 0:07:51]} Bf6 {[%emt 0:11:17]} 23. Bxf6 {[%emt 0:02:29]} gxf6 {[%emt 0:00:10]} 24. Qa8+ {[%emt 0:03:09]} Kg7 {[%emt 0:01:40]} 25. Rd8 {[%emt 0:04:55]} f5 {[%emt 0:06:32]} 26. Rh8 {[%emt 0:05:21]} b5 {[%emt 0:06:10]} 27. Qf8+ {[%emt 0:01:46]} Kf6 {[%emt 0:00:27]} 28. Qxh6+ {[%emt 0:01:10]} Ke7 {[%emt 0:02:06]} 29. Qg5+ {[%emt 0:05:22]} Kd7 {[%emt 0:01:12]} 30. Rf8 {[%emt 0:03:28]} Kc6 {[%emt 0:00:30]} 31. cxb5+ {[%emt 0:04:11]} Kxb5 {[%emt 0:00:13]} 32. Qf4 {[%emt 0:04:52]} Rc1+ {[%emt 0:07:19]} 33. Kh2 {[%emt 0:00:25]} Qc5 {[%emt 0:02:11]} 34. Rb8+ {[%emt 0:01:55]} Ka6 {[%emt 0:00:43]} 35. Qa4+ {[%emt 0:00:58]} Qa5 {[%emt 0:00:09]} 36. Qxa5+ {[%emt 0:01:54]} Kxa5 {[%emt 0:00:06]} 37. Rb7 {[%emt 0:00:26]} Ka6 {[%emt 0:00:36]} 38. Rxf7 {[%emt 0:00:28]} Rc2 {[%emt 0:00:48]} 39. Kg2 {[%emt 0:01:17]} Rxa2 {[%emt 0:00:09]} 40. h5 {[%emt 0:00:00]} Rb2 {[%emt 0:00:00]} 41. Re7 {[%emt 0:04:33]} Rxb3 {[%emt 0:02:35]} 42. Rxe6+ {[%emt 0:00:08]} Kb7 {[%emt 0:01:07]} 43. h6 {[%emt 0:02:59]} Rc3 {[%emt 0:00:58]} 44. h7 {[%emt 0:01:08]} Rc8 {[%emt 0:00:13]} 45. Rh6 {[%emt 0:00:31]} Rh8 {[%emt 0:00:07]} 46. Kf3 {[%emt 0:00:37]} a5 {[%emt 0:00:59]} 47. Kf4 {[%emt 0:00:12]} a4 {[%emt 0:00:35]} 48. Kxf5 {[%emt 0:00:27]} a3 {[%emt 0:00:27]} 49. Kg6 {[%emt 0:00:52]} a2 {[%emt 0:00:42]} 50. Rh1 {[%emt 0:00:07]} Rc8 {[%emt 0:03:14]} 51. Ra1 {[%emt 0:02:16]} 1-0

[Event "Reykjavik Open 2022"]
[Site "Reykjavik"]
[Date "2022.04.07"]
[Round "2.57"]
[White "Karlsson, Mikael Johann"]
[Black "Jonsson, Kristjan Dagur"]
[Result "1-0"]
[ECO "A20"]
[WhiteElo "2119"]
[BlackElo "1797"]
[Annotator "RC"]
[PlyCount "55"]
[EventDate "2022.04.06"]
[EventCountry "ISL"]
[SourceTitle "playchess.com"]
[Source "ChessBase"]
[SourceQuality "1"]
[TimeControl "40/5400+30:1800+30"]

1. c4 {[%emt 0:00:02]} e5 {[%emt 0:00:17]} 2. g3 {[%emt 0:00:04]} Nf6 {[%emt 0:00:12]} 3. Bg2 {[%emt 0:00:04]} d5 {[%emt 0:00:10]} 4. cxd5 {[%emt 0:00:04]} Nxd5 {[%emt 0:00:10]} 5. Nf3 {[%emt 0:00:02]} Nc6 {[%emt 0:00:28]} 6. O-O {[%emt 0:00:06]} Be7 {[%emt 0:00:41]} 7. d4 {[%emt 0:00:24]} exd4 {[%emt 0:14:20]} 8. Nxd4 {[%emt 0:00:05]} Nxd4 {[%emt 0:15:35]} 9. Qxd4 {[%emt 0:00:06]} Be6 {[%emt 0:05:43]} 10. Qxg7 {[%emt 0:04:12]} Bf6 {[%emt 0:00:59]} 11. Qh6 {[%emt 0:00:05]} Qe7 {[%emt 0:01:03]} 12. e4 {[%emt 0:11:42]} Nb4 {[%emt 0:03:45]} 13. Nc3 {[%emt 0:00:07]} O-O-O {[%emt 0:06:04]} 14. Be3 {[%emt 0:21:20]} Kb8 {[%emt 0:04:42]} 15. Bc5 {[%emt 0:06:44]} Qxc5 {[%emt 0:03:11]} 16. Qxf6 {[%emt 0:00:06]} h5 {[%emt 0:09:34]} 17. a3 {[%emt 0:04:42]} Nd3 {[%emt 0:05:31]} 18. b4 {[%emt 0:01:52]} Qd4 {[%emt 0:04:03]} 19. Qxd4 {[%emt 0:00:16]} Rxd4 {[%emt 0:00:09]} 20. Rfd1 {[%emt 0:01:06]} Rhd8 {[%emt 0:03:11]} 21. Rd2 {[%emt 0:04:53]} Ne5 {[%emt 0:01:17]} 22. Rxd4 {[%emt 0:01:04]} Rxd4 {[%emt 0:00:10]} 23. Ne2 {[%emt 0:04:42]} Rd2 {[%emt 0:02:59]} 24. Nf4 {[%emt 0:00:15]} Bg4 {[%emt 0:02:01]} 25. h3 {[%emt 0:01:21]} Bd1 {[%emt 0:01:07]} 26. Rc1 {[%emt 0:08:14]} Nf3+ {[%emt 0:01:03]} 27. Kf1 {[%emt 0:00:38]} Nd4 {[%emt 0:01:54]} 28. Ke1 {[%emt 0:02:15]} 1-0